fUST/lending_fUST_20240111
["ID","MTS","AMOUNT","RATE_DAILY","PERIOD"]
[311142939,1704930638503,-254.58486474,0.0001625,2]
[311142941,1704930638513,-79637.64481927,0.00016251,2]
[311142943,1704930638522,-976.0012481,0.00016256,2]
[311142945,1704930638531,-271.96235488,0.000165,2]
[311142947,1704930638541,-246.05359663,0.000178,2]
[311142949,1704930638550,-10500.0358078,0.00017898,2]
[311142951,1704930638559,-4035.23913107,0.00018063,2]
[311142952,1704930638568,-7691.96677688,0.00018103,2]
[311142954,1704930638578,-927.65626485,0.00018762,2]
[311142956,1704930638586,-1578.65511595,0.00019,2]
[311142958,1704930638595,-1112.08388858,0.000195,2]
[311142960,1704930638605,-200.0,0.00019876,2]
[311142961,1704930638614,-871.98251368,0.00019998,2]
[311142963,1704930638624,-232.4537467,0.00019998,2]
[311142965,1704930638633,-345.23684435,0.00019998,2]
[311142966,1704930638642,-1030.93287824,0.00019998,2]
[311142967,1704930638652,-179.87891561,0.00019998,2]
[311142968,1704930638661,-386.21950974,0.00019999,2]
[311142970,1704930638671,-6165.34199068,0.00019999,2]
[311142972,1704930638680,-236.79527182,0.0002,2]
[311142974,1704930638691,-853.57612089,0.0002,2]
[311142976,1704930638702,-1195.09669838,0.0002,2]
[311142977,1704930638711,-676.96253794,0.0002,2]
[311142980,1704930638721,-266.19065175,0.0002,2]
[311142982,1704930638731,-270734.30120863,0.0002,2]
[311142984,1704930638740,-589.71606137,0.0002,2]
[311142986,1704930638749,-309.7831518,0.0002,2]
[311142987,1704930638759,-2138.00848953,0.00020237,5]
[311142990,1704930638769,-198.08093084,0.000209,2]
[311142992,1704930638779,-326.73090334,0.00021,2]
[311142993,1704930638787,-156.86767994,0.00022,2]
[311142996,1704930638797,-309.81434045,0.00022,2]
[311142998,1704930638806,-783.36489278,0.00022,2]
[311142999,1704930638815,-292.83058016,0.00022,4]
[311143002,1704930638824,-155.05426899,0.000225,2]
[311143003,1704930638833,-879.087691,0.0002287,2]
[311143005,1704930638842,-9920.80434626,0.00023,2]
[311143007,1704930638851,-2093.08732709,0.00023,2]
[311143009,1704930638860,-166.666666,0.00023016,2]
[311143012,1704930638870,-166.666666,0.00023644,2]
[311143014,1704930638879,-614.01289661,0.00024,2]
[311143017,1704930638900,-214.74185366,0.00024,2]
[311143019,1704930638910,-2293.16748545,0.00024,2]
[311143021,1704930638920,-6523.23867914,0.00024049,2]
[311143023,1704930638929,-166.666666,0.00024271,2]
[311143025,1704930638939,-166.666666,0.00024899,2]
[311143027,1704930638953,-497.00944952,0.0002498,5]
[311143029,1704930638962,-4711.08145103,0.00025,2]
[311143031,1704930638972,-677.45880314,0.00025,2]
[311143033,1704930638981,-3000.0,0.00025,2]
[311143035,1704930638991,-295.1799916,0.00025,2]
[311143037,1704930639001,-155.04341216,0.00025,2]
[311143039,1704930639010,-155.10911915,0.00025,2]
[311143041,1704930639021,-200.0,0.00025479,2]
[311143043,1704930639032,-166.666666,0.00025526,2]
[311143045,1704930639042,-382.90693174,0.00025913,2]
[311143047,1704930639051,-363.13946251,0.00025913,2]
[311143049,1704930639061,-525.91402641,0.00026,2]
[311143051,1704930639072,-2126.09470477,0.00026,2]
[311143053,1704930639082,-3612.07378676,0.00026,2]
[311143055,1704930639094,-999.70008997,0.00026119,2]
[311143058,1704930639107,-158.086414,0.00026144,2]
[311143060,1704930639117,-166.666666,0.00026154,2]
[311143062,1704930639128,-716.53143343,0.000264,2]
[311143063,1704930639138,-200.0,0.00026455,15]
[311143064,1704930639148,-348.0,0.00026455,15]
[311143065,1704930639158,-155.29095944,0.00026982,2]
[311143066,1704930639169,-157.00158088,0.00026982,2]
[311143067,1704930639180,-546.7810851,0.00026982,2]
[311143068,1704930639194,-763.40324942,0.00026982,2]
[311143069,1704930639206,-309.55113308,0.00026982,2]
[311143070,1704930639216,-9133.70203484,0.00026982,2]
[311143071,1704930639226,-677.27393931,0.00026982,2]
[311143072,1704930639237,-300.0,0.00026982,2]
[311143073,1704930639247,-2079.63666476,0.00026982,2]
[311143074,1704930639256,-155.04341216,0.00026982,7]
[311143075,1704930639265,-1821.85168105,0.00026982,2]
[311143076,1704930639276,-200.0,0.00026982,2]
[311143077,1704930639285,-156.00930331,0.00026982,2]
[311143078,1704930639295,-1821.85168105,0.00026982,2]
[311143079,1704930639305,-3313.2630203,0.00027,2]
[311143080,1704930639317,-733.25771754,0.00027,2]
[311143081,1704930639326,-462.9180712,0.00027121,2]
[311143082,1704930639337,-881.54048978,0.00027287,2]
[311143083,1704930639348,-9098.22062588,0.000273,4]
[311143084,1704930639358,-500.0,0.00027397,2]
[311143085,1704930639367,-29701.29,0.00027397,3]
[311143086,1704930639377,-24751.07,0.00027397,3]
[311143087,1704930639387,-501.0,0.000274,2]
[311143088,1704930639397,-500.0,0.00027534,2]
[311143089,1704930639408,-500.0,0.00027671,2]
[311143090,1704930639418,-687.59711705,0.000277,2]
[311143091,1704930639428,-624.82657167,0.0002772,2]
[311143092,1704930639438,-500.0,0.00027808,2]
[311143093,1704930639451,-500.0,0.00027945,2]
[311143094,1704930639460,-305.01426273,0.00028,2]
[311143095,1704930639470,-157.52979972,0.00028,2]
[311143096,1704930639479,-500.0,0.00028082,2]
[311143097,1704930639488,-151.04078101,0.00028095,7]
[311143098,1704930639498,-500.0,0.00028219,2]
[311143099,1704930639507,-500.0,0.00028356,2]
[311143101,1704930639516,-500.0,0.00028493,2]
[311143102,1704930639526,-500.0,0.0002863,2]
[311143103,1704930639660,-151.04078101,0.00028668,4]
[311143104,1704930639671,-254.05524745,0.00028701,3]
[311143105,1704930639681,-500.0,0.00028767,2]
[311143106,1704930639693,-185.7733706,0.00029,2]
[311143107,1704930639703,-1982.97164167,0.00029,2]
[311143108,1704930639713,-1000.0,0.00029,2]
[311143109,1704930639723,-3669.02808267,0.00029043,3]
[311143110,1704930639733,-10609.56983223,0.00029043,4]
[311143111,1704930639742,-4363.67180488,0.00029043,4]
[311143112,1704930639751,-50000.0,0.00029043,2]
[311143113,1704930639761,-80034.50555872,0.00029043,2]
[311143114,1704930639770,-200.0,0.000291,15]
[311143115,1704930639779,-200.0,0.000291,15]
[311143116,1704930639789,-368.0,0.000291,15]
[311143117,1704930639799,-620.24132858,0.00029106,2]
[311143118,1704930639808,-151.04078101,0.00029253,2]
[311143119,1704930639818,-620.01105756,0.0002937,2]
[311143120,1704930639827,-5691.48592447,0.00029406,2]
[311143121,1704930639868,-1500.0,0.000295,2]
[311143122,1704930639877,-153.07458896,0.00029658,2]
[311143123,1704930639887,-155.44388085,0.00029803,2]
[311143124,1704930639896,-174.60860092,0.00029999,2]
[311143125,1704930639905,-3503.44,0.0003,2]
[311143126,1704930639915,-5000.0,0.0003,2]
[311143127,1704930639924,-5000.0,0.0003,2]
[311143128,1704930639933,-5000.0,0.0003,2]
[311143129,1704930639946,-5000.0,0.0003,2]
[311143130,1704930639955,-5000.07,0.0003,2]
[311143131,1704930639964,-236.52252731,0.0003,7]
[311143132,1704930639974,-155.05271792,0.0003,2]
[311143133,1704930639984,-282.5931468,0.0003,3]
[311143134,1704930639994,-399.65900583,0.0003,4]
[311143135,1704930640006,-686.6335406,0.0003,4]
[311143136,1704930640016,-463.38099934,0.0003,4]
[311143137,1704930640025,-639.65046808,0.0003,4]
[311143138,1704930640035,-6973.85683356,0.0003,4]
[311143139,1704930640045,-15040.0244209,0.0003,4]
[311143140,1704930640055,-223.18590796,0.0003,7]
[311143141,1704930640065,-1200.0,0.0003,4]
[311143142,1704930640075,-238.0,0.0003,2]
[311143143,1704930640086,-500.0,0.0003003,2]
[311143144,1704930640095,-647.56649039,0.0003003,2]
[311143145,1704930640106,-500.0,0.0003003,2]
[311143146,1704930640117,-500.0,0.0003003,2]
[311143147,1704930640128,-500.0,0.0003003,2]
[311143148,1704930640140,-583.19259784,0.0003003,2]
[311143149,1704930640150,-500.0,0.0003003,2]
[311143151,1704930640161,-500.0,0.0003003,2]
[311143152,1704930640170,-461.88116942,0.0003003,2]
[311143153,1704930640181,-500.0,0.0003003,2]
[311143154,1704930640194,-500.0,0.0003003,2]
[311143155,1704930640204,-500.0,0.0003003,2]
[311143157,1704930640215,-631.20206211,0.0003003,2]
[311143159,1704930640225,-500.0,0.0003003,2]
[311143161,1704930640235,-500.0,0.0003003,2]
[311143163,1704930640245,-500.0,0.0003003,2]
[311143165,1704930640255,-500.0,0.0003003,2]
[311143168,1704930640266,-500.0,0.0003003,2]
[311143170,1704930640275,-500.0,0.0003003,2]
[311143172,1704930640285,-500.0,0.0003003,2]
[311143174,1704930640295,-332.88035736,0.0003003,2]
[311143176,1704930640304,-500.0,0.0003003,2]
[311143178,1704930640314,-500.0,0.0003003,2]
[311143182,1704930640326,-152825.39979696,0.00030032,2]
[311143186,1704930640342,-10202.84952288,0.00030032,2]
[311143189,1704930640354,-112971.75068016,0.00030032,2]
[311143191,1704930640365,-38363.65059237,0.00030036,3]
[311143193,1704930640376,-155.031497,0.00030073,2]
[311143196,1704930640385,-152.788534,0.00030073,2]
[311143198,1704930640395,-155.031496,0.00030073,2]
[311143200,1704930640406,-152.788532,0.00030073,2]
[311143203,1704930640419,-164.471897,0.00030073,2]
[311143204,1704930640429,-212.94703521,0.00030104,2]
[311143207,1704930640439,-185.18842369,0.0003013,4]
[311143209,1704930640450,-311.35324543,0.00030132,4]
[311143212,1704930640461,-3732.74533379,0.00030132,4]
[311143216,1704930640471,-412.41447299,0.00030133,4]
[311143218,1704930640482,-4217.17842749,0.00030133,4]
[311143219,1704930640492,-453.49170309,0.00030134,4]
[311143222,1704930640502,-310.15489996,0.00030134,4]
[311143225,1704930640512,-189.79607658,0.00030134,2]
[311143228,1704930640521,-228.94822044,0.00030134,4]
[311143232,1704930640531,-158.25687426,0.00030134,4]
[311143234,1704930640541,-283.92372612,0.00030134,4]
[311143236,1704930640550,-155.46781251,0.00030134,4]
[311143238,1704930640560,-165.28210199,0.00030134,4]
[311143240,1704930640570,-229.35916195,0.00030134,4]
[311143242,1704930640581,-1085.93448842,0.00030134,5]
[311143244,1704930640593,-15392.1969927,0.00030134,2]
[311143245,1704930640603,-491.93940325,0.00030134,4]
[311143246,1704930640614,-559.99120684,0.00030134,4]
[311143247,1704930640624,-5574.59415352,0.00030134,4]
[311143248,1704930640634,-1575.9466697,0.00030134,4]
[311143249,1704930640643,-309.77526042,0.00030134,4]
[311143250,1704930640653,-156.86178888,0.00030134,4]
[311143251,1704930640663,-1431.35416996,0.00030134,4]
[311143252,1704930640673,-407.6722667,0.00030135,4]
[311143253,1704930640683,-3533.73894756,0.00030135,4]
[311143254,1704930640697,-15530.5508791,0.00030135,4]
[311143255,1704930640707,-310.02929974,0.00030135,4]
[311143256,1704930640716,-500.0,0.00030136,2]
[311143257,1704930640725,-500.0,0.00030136,2]
[311143258,1704930640734,-500.0,0.00030136,2]
[311143259,1704930640744,-500.0,0.00030136,2]
[311143260,1704930640753,-504.62005244,0.00030136,2]
[311143261,1704930640762,-500.0,0.00030136,2]
[311143262,1704930640771,-500.0,0.00030136,2]
[311143263,1704930640780,-500.0,0.00030136,2]
[311143264,1704930640789,-500.0,0.00030136,2]
[311143265,1704930640798,-500.0,0.00030136,2]
[311143266,1704930640807,-500.0,0.00030136,2]
[311143267,1704930640816,-500.0,0.00030136,2]
[311143268,1704930640825,-500.0,0.00030136,2]
[311143269,1704930640835,-500.0,0.00030136,2]
[311143270,1704930640844,-500.0,0.00030136,2]
[311143271,1704930640852,-500.0,0.00030136,2]
[311143272,1704930640862,-500.0,0.00030136,2]
[311143273,1704930640871,-500.0,0.00030136,2]
[311143274,1704930640880,-500.0,0.00030136,2]
[311143275,1704930640889,-500.0,0.00030136,2]
[311143276,1704930640899,-521.24577177,0.00030136,2]
[311143277,1704930640909,-500.0,0.00030136,2]
[311143278,1704930640922,-500.0,0.00030136,2]
[311143279,1704930640931,-500.0,0.00030136,2]
[311143280,1704930640942,-500.0,0.00030136,2]
[311143281,1704930640952,-500.0,0.00030136,2]
[311143282,1704930640961,-500.0,0.00030136,2]
[311143283,1704930640970,-500.0,0.00030136,2]
[311143284,1704930640979,-500.0,0.00030136,2]
[311143285,1704930640988,-500.0,0.00030136,2]
[311143286,1704930640998,-500.0,0.00030136,2]
[311143288,1704930641007,-500.0,0.00030136,2]
[311143290,1704930641016,-509.66374752,0.00030136,2]
[311143291,1704930641027,-500.0,0.00030136,2]
[311143293,1704930641036,-505.56,0.00030136,2]
[311143295,1704930641045,-500.0,0.00030136,2]
[311143297,1704930641055,-500.0,0.00030136,2]
[311143299,1704930641064,-500.0,0.00030136,2]
[311143301,1704930641073,-500.0,0.00030136,2]
[311143303,1704930641083,-500.0,0.00030136,2]
[311143305,1704930641092,-500.0,0.00030136,2]
[311143307,1704930641102,-500.0,0.00030136,2]
[311143309,1704930641111,-500.0,0.00030136,2]
[311143311,1704930641121,-500.0,0.00030136,2]
[311143313,1704930641130,-500.0,0.00030136,2]
[311143315,1704930641139,-500.0,0.00030136,2]
[311143317,1704930641148,-500.0,0.00030136,2]
[311143319,1704930641158,-500.0,0.00030136,2]
[311143321,1704930641167,-500.0,0.00030136,2]
[311143323,1704930641177,-500.0,0.00030136,2]
[311143325,1704930641186,-500.0,0.00030136,2]
[311143327,1704930641198,-500.0,0.00030136,2]
[311143329,1704930641207,-500.0,0.00030136,2]
[311143331,1704930641217,-500.0,0.00030136,2]
[311143333,1704930641226,-500.0,0.00030136,2]
[311143335,1704930641236,-500.0,0.00030136,2]
[311143337,1704930641246,-500.0,0.00030136,2]
[311143339,1704930641256,-415.35,0.00030136,2]
[311143341,1704930641266,-500.0,0.00030136,2]
[311143343,1704930641276,-500.0,0.00030136,2]
[311143345,1704930641286,-500.0,0.00030136,2]
[311143347,1704930641297,-552.58437881,0.00030136,2]
[311143349,1704930641307,-1412.23,0.00030136,2]
[311143351,1704930641318,-500.0,0.00030136,2]
[311143353,1704930641327,-500.0,0.00030136,2]
[311143355,1704930641338,-500.0,0.00030136,2]
[311143357,1704930641348,-500.0,0.00030136,2]
[311143359,1704930641358,-500.0,0.00030136,2]
[311143361,1704930641367,-500.0,0.00030136,2]
[311143363,1704930641377,-500.0,0.00030136,2]
[311143365,1704930641387,-500.0,0.00030136,2]
[311143367,1704930641397,-500.0,0.00030136,2]
[311143369,1704930641407,-500.0,0.00030136,2]
[311143371,1704930641416,-619.60504087,0.00030136,2]
[311143372,1704930641426,-500.0,0.00030136,2]
[311143373,1704930641435,-500.0,0.00030136,2]
[311143374,1704930641447,-500.0,0.00030136,2]
[311143375,1704930641456,-300.30861175,0.00030136,2]
[311143376,1704930641466,-182.34820388,0.00030136,2]
[311143377,1704930641476,-500.0,0.00030136,2]
[311143378,1704930641487,-500.0,0.00030136,2]
[311143379,1704930641497,-758.72,0.00030136,2]
[311143380,1704930641506,-245.8717065,0.00030136,2]
[311143381,1704930641516,-160.41368838,0.00030136,2]
[311143382,1704930641528,-500.0,0.00030136,2]
[311143383,1704930641538,-500.0,0.00030136,2]
[311143384,1704930641553,-500.0,0.00030136,2]
[311143385,1704930641567,-551.98388978,0.00030136,2]
[311143387,1704930641579,-500.0,0.00030136,2]
[311143389,1704930641589,-500.0,0.00030136,2]
[311143391,1704930641600,-500.0,0.00030136,2]
[311143393,1704930641610,-500.0,0.00030136,2]
[311143395,1704930641620,-500.0,0.00030136,2]
[311143397,1704930641632,-503.86625205,0.00030136,2]
[311143399,1704930641641,-500.0,0.00030136,2]
[311143401,1704930641650,-500.0,0.00030136,2]
[311143403,1704930641659,-500.0,0.00030136,2]
[311143405,1704930641668,-500.0,0.00030136,2]
[311143407,1704930641678,-500.0,0.00030136,2]
[311143409,1704930641687,-341.18024772,0.00030136,2]
[311143411,1704930641699,-503.10249183,0.00030136,30]
[311143413,1704930641708,-500.0,0.00030136,2]
[311143415,1704930641718,-506.65770087,0.00030136,2]
[311143417,1704930641731,-513.25278218,0.00030136,2]
[311143420,1704930641740,-500.0,0.00030136,2]
[311143422,1704930641749,-500.0,0.00030136,2]
[311143424,1704930641758,-500.0,0.00030136,2]
[311143426,1704930641768,-500.0,0.00030136,2]
[311143428,1704930641777,-500.0,0.00030136,2]
[311143430,1704930641787,-500.0,0.00030136,2]
[311143431,1704930641796,-500.0,0.00030136,2]
[311143434,1704930641806,-500.0,0.00030136,2]
[311143436,1704930641815,-500.0,0.00030136,2]
[311143438,1704930641824,-500.0,0.00030136,2]
[311143439,1704930641833,-500.0,0.00030136,2]
[311143441,1704930641843,-500.0,0.00030136,2]
[311143443,1704930641852,-500.0,0.00030136,2]
[311143445,1704930641861,-521.17339293,0.00030136,2]
[311143447,1704930641871,-500.0,0.00030136,2]
[311143449,1704930641880,-500.0,0.00030136,2]
[311143451,1704930641889,-500.0,0.00030136,2]
[311143453,1704930641898,-501.1581429,0.00030136,2]
[311143455,1704930641908,-500.0,0.00030136,2]
[311143458,1704930641920,-285.49862823,0.00030136,2]
[311143459,1704930641929,-500.0,0.00030136,2]
[311143470,1704930642027,-154.99763678,0.00030136,2]
[311143472,1704930642036,-500.0,0.00030136,2]
[311143474,1704930642046,-500.0,0.00030136,2]
[311143476,1704930642055,-500.0,0.00030136,2]
[311143478,1704930642064,-525.26945881,0.00030136,2]
[311143480,1704930642075,-500.0,0.00030136,2]
[311143483,1704930642084,-502.72071019,0.00030136,2]
[311143484,1704930642093,-501.21878205,0.00030136,2]
[311143486,1704930642102,-500.0,0.00030136,2]
[311143488,1704930642112,-446.21810783,0.00030136,2]
[311143491,1704930642122,-515.62358603,0.00030136,2]
[311143493,1704930642131,-500.0,0.00030136,2]
[311143494,1704930642141,-500.0,0.00030136,2]
[311143496,1704930642151,-500.0,0.00030136,2]
[311143499,1704930642161,-500.0,0.00030136,2]
[311143500,1704930642171,-500.0,0.00030136,2]
[311143502,1704930642180,-500.0,0.00030136,2]
[311143504,1704930642194,-500.0,0.00030136,2]
[311143506,1704930642205,-500.0,0.00030136,2]
[311143509,1704930642216,-683.42,0.00030136,2]
[311143511,1704930642226,-500.0,0.00030136,2]
[311143512,1704930642235,-500.0,0.00030136,2]
[311143514,1704930642245,-1001.38259395,0.00030136,2]
[311143516,1704930642255,-500.0,0.00030136,2]
[311143519,1704930642265,-410.5381955,0.00030136,2]
[311143521,1704930642275,-500.0,0.00030136,2]
[311143522,1704930642285,-500.0,0.00030136,2]
[311143525,1704930642296,-500.0,0.00030136,2]
[311143527,1704930642306,-500.0,0.00030136,2]
[311143528,1704930642316,-500.0,0.00030136,2]
[311143530,1704930642330,-500.0,0.00030136,2]
[311143532,1704930642340,-500.0,0.00030136,2]
[311143534,1704930642350,-500.0,0.00030136,2]
[311143536,1704930642363,-504.76831012,0.00030136,2]
[311143538,1704930642372,-500.0,0.00030136,2]
[311143540,1704930642382,-500.0,0.00030136,2]
[311143543,1704930642391,-500.0,0.00030136,2]
[311143544,1704930642402,-500.0,0.00030136,2]
[311143546,1704930642411,-500.0,0.00030136,2]
[311143548,1704930642420,-500.0,0.00030136,2]
[311143550,1704930642430,-500.0,0.00030136,2]
[311143553,1704930642440,-500.0,0.00030136,2]
[311143555,1704930642456,-500.0,0.00030136,2]
[311143556,1704930642465,-500.0,0.00030136,2]
[311143558,1704930642474,-500.0,0.00030136,2]
[311143560,1704930642483,-500.0,0.00030136,2]
[311143562,1704930642492,-500.0,0.00030136,2]
[311143564,1704930642501,-500.0,0.00030136,2]
[311143566,1704930642510,-500.0,0.00030136,2]
[311143569,1704930642519,-500.0,0.00030136,2]
[311143572,1704930642528,-500.0,0.00030136,2]
[311143575,1704930642537,-500.0,0.00030136,2]
[311143579,1704930642547,-500.0,0.00030136,2]
[311143583,1704930642556,-500.0,0.00030136,2]
[311143586,1704930642565,-500.0,0.00030136,2]
[311143589,1704930642574,-500.0,0.00030136,2]
[311143591,1704930642582,-500.0,0.00030136,2]
[311143593,1704930642591,-500.0,0.00030136,2]
[311143595,1704930642600,-285.5345867,0.00030136,2]
[311143598,1704930642610,-500.0,0.00030136,2]
[311143600,1704930642619,-500.0,0.00030136,2]
[311143602,1704930642628,-500.0,0.00030136,2]
[311143604,1704930642638,-500.0,0.00030136,2]
[311143606,1704930642647,-500.0,0.00030136,2]
[311143608,1704930642656,-500.0,0.00030136,2]
[311143610,1704930642665,-329.63216967,0.00030136,2]
[311143612,1704930642675,-579.0,0.00030136,2]
[311143614,1704930642684,-500.0,0.00030136,2]
[311143617,1704930642696,-177.8276672,0.00030136,2]
[311143619,1704930642705,-500.0,0.00030136,2]
[311143622,1704930642714,-287.98515762,0.00030136,2]
[311143624,1704930642724,-500.0,0.00030136,2]
[311143626,1704930642733,-500.0,0.00030136,2]
[311143628,1704930642742,-500.0,0.00030136,2]
[311143631,1704930642751,-245.67677923,0.00030136,2]
[311143633,1704930642761,-200.0,0.00030136,2]
[311143635,1704930642770,-500.0,0.00030136,2]
[311143637,1704930642779,-500.0,0.00030136,2]
[311143639,1704930642788,-154.29729751,0.00030136,2]
[311143641,1704930642796,-500.0,0.00030136,2]
[311143643,1704930642804,-500.0,0.00030136,2]
[311143645,1704930642813,-500.0,0.00030136,2]
[311143647,1704930642822,-500.0,0.00030136,2]
[311143649,1704930642832,-504.21942309,0.00030136,2]
[311143651,1704930642841,-500.0,0.00030136,2]
[311143653,1704930642850,-500.0,0.00030136,2]
[311143654,1704930642859,-500.0,0.00030136,2]
[311143656,1704930642868,-500.0,0.00030136,2]
[311143658,1704930642878,-500.0,0.00030136,2]
[311143660,1704930642887,-500.0,0.00030136,2]
[311143661,1704930642897,-908.31,0.00030136,2]
[311143663,1704930642907,-500.0,0.00030136,2]
[311143665,1704930642916,-500.0,0.00030136,2]
[311143667,1704930642926,-13018.66,0.00030136,2]
[311143669,1704930642936,-500.30641269,0.00030136,2]
[311143671,1704930642949,-500.0,0.00030136,2]
[311143673,1704930642959,-500.0,0.00030136,2]
[311143676,1704930642970,-282.4939913,0.00030136,2]
[311143678,1704930642979,-3202.48,0.00030136,2]
[311143680,1704930642989,-500.0,0.00030136,2]
[311143682,1704930642998,-500.0,0.00030136,2]
[311143684,1704930643008,-631.82750431,0.00030136,2]
[311143686,1704930643017,-500.0,0.00030136,2]
[311143688,1704930643026,-469.88941298,0.00030136,2]
[311143690,1704930643036,-500.0,0.00030136,2]
[311143692,1704930643049,-502.5845982,0.00030136,2]
[311143695,1704930643063,-500.0,0.00030136,2]
[311143697,1704930643076,-500.0,0.00030136,2]
[311143700,1704930643090,-500.0,0.00030136,2]
[311143702,1704930643102,-500.0,0.00030136,2]
[311143704,1704930643112,-500.0,0.00030136,2]
[311143706,1704930643124,-500.0,0.00030136,2]
[311143709,1704930643136,-500.0,0.00030136,2]
[311143711,1704930643148,-500.0,0.00030136,2]
[311143713,1704930643161,-540.53,0.00030136,2]
[311143716,1704930643174,-500.0,0.00030136,2]
[311143718,1704930643186,-500.0,0.00030136,2]
[311143720,1704930643203,-165.36565225,0.00030136,2]
[311143723,1704930643214,-500.0,0.00030136,2]
[311143725,1704930643227,-500.0,0.00030136,2]
[311143727,1704930643239,-202.74783621,0.00030136,2]
[311143729,1704930643251,-500.0,0.00030136,2]
[311143731,1704930643263,-500.0,0.00030136,2]
[311143734,1704930643274,-2522.91,0.00030136,2]
[311143737,1704930643287,-344.89739807,0.00030136,2]
[311143740,1704930643302,-1124.38,0.00030136,2]
[311143744,1704930643314,-500.0,0.00030136,2]
[311143747,1704930643325,-500.0,0.00030136,2]
[311143750,1704930643336,-4683.1,0.00030136,2]
[311143753,1704930643347,-500.0,0.00030136,2]
[311143756,1704930643362,-2741.15,0.00030136,2]
[311143757,1704930643374,-500.0,0.00030136,2]
[311143760,1704930643387,-500.0,0.00030136,2]
[311143762,1704930643397,-2212.51,0.00030136,2]
[311143763,1704930643409,-500.0,0.00030136,2]
[311143765,1704930643420,-500.0,0.00030136,2]
[311143767,1704930643433,-1000.0,0.00030136,2]
[311143769,1704930643447,-502.63069071,0.00030136,2]
[311143771,1704930643459,-8095.11,0.00030136,2]
[311143773,1704930643471,-614.27,0.00030136,2]
[311143775,1704930643483,-500.0,0.00030136,2]
[311143777,1704930643494,-500.0,0.00030136,2]
[311143780,1704930643506,-500.0,0.00030136,2]
[311143782,1704930643517,-817.75,0.00030136,2]
[311143784,1704930643528,-500.0,0.00030136,2]
[311143786,1704930643538,-500.0,0.00030136,2]
[311143787,1704930643547,-500.0,0.00030136,2]
[311143789,1704930643557,-500.0,0.00030136,2]
[311143791,1704930643568,-500.0,0.00030136,2]
[311143793,1704930643578,-500.0,0.00030136,2]
[311143795,1704930643590,-1765.33,0.00030136,2]
[311143797,1704930643600,-693.7,0.00030136,2]
[311143799,1704930643611,-557.04,0.00030136,2]
[311143801,1704930643623,-500.0,0.00030136,2]
[311143803,1704930643634,-500.0,0.00030136,2]
[311143805,1704930643644,-500.0,0.00030136,2]
[311143807,1704930643654,-500.0,0.00030136,2]
[311143809,1704930643664,-500.0,0.00030136,2]
[311143811,1704930643675,-504.89947469,0.00030136,2]
[311143813,1704930643685,-754.07,0.00030136,2]
[311143814,1704930643698,-16105.62507718,0.00030136,10]
[311143816,1704930643708,-500.0,0.00030136,2]
[311143818,1704930643720,-525.98,0.00030136,2]
[311143820,1704930643730,-509.12236943,0.00030136,2]
[311143822,1704930643741,-500.0,0.00030136,2]
[311143824,1704930643751,-500.0,0.00030136,2]
[311143826,1704930643761,-1285.07,0.00030136,2]
[311143828,1704930643772,-755.5,0.00030136,2]
[311143829,1704930643782,-500.0,0.00030136,2]
[311143831,1704930643792,-500.0,0.00030136,2]
[311143833,1704930643803,-500.0,0.00030136,2]
[311143835,1704930643813,-500.0,0.00030136,2]